fUST/lending_fUST_20260515
["ID","MTS","AMOUNT","RATE_DAILY","PERIOD"]
[422339779,1778849442000,-7753.18,0.00010958,2]
[422339781,1778849442000,-787.75,0.00010958,2]
[422339777,1778849442000,-500.35967146,0.00010958,2]
[422339782,1778849442000,-500.0,0.00010958,2]
[422339786,1778849442000,-500.0,0.00010958,2]
[422339784,1778849442000,-502.98888779,0.00010958,2]
[422339788,1778849442000,-500.0,0.00010958,2]
[422339790,1778849442000,-500.0,0.00010958,2]
[422339759,1778849442000,-506.06115387,0.00010958,2]
[422339794,1778849442000,-500.0,0.00010958,2]
[422339797,1778849442000,-1714.37,0.00010958,2]
[422339818,1778849442000,-500.0,0.00010958,2]
[422339811,1778849442000,-1052.4,0.00010958,2]
[422339814,1778849442000,-500.0,0.00010958,2]
[422339816,1778849442000,-805.68,0.00010958,2]
[422339805,1778849442000,-500.0,0.00010958,2]
[422339812,1778849442000,-3343.14,0.00010958,2]
[422339807,1778849442000,-500.0,0.00010958,2]
[422339803,1778849442000,-500.0,0.00010958,2]
[422339801,1778849442000,-500.0,0.00010958,2]
[422339799,1778849442000,-500.0,0.00010958,2]
[422339792,1778849442000,-500.0,0.00010958,2]
[422339795,1778849442000,-500.0,0.00010958,2]
[422339809,1778849442000,-1254.81,0.00010958,2]
[422339945,1778849443000,-1261.59,0.00010958,2]
[422339947,1778849443000,-500.0,0.00010958,2]
[422339946,1778849443000,-500.0,0.00010958,2]
[422339943,1778849443000,-500.0,0.00010958,2]
[422339944,1778849443000,-4459.59,0.00010958,2]
[422339940,1778849443000,-500.0,0.00010958,2]
[422339942,1778849443000,-500.0,0.00010958,2]
[422339935,1778849443000,-8085.57,0.00010958,2]
[422339937,1778849443000,-500.0,0.00010958,2]
[422339936,1778849443000,-3177.11,0.00010958,2]
[422339938,1778849443000,-699.99,0.00010958,2]
[422339941,1778849443000,-500.0,0.00010958,2]
[422339953,1778849443000,-500.0,0.00010958,2]
[422339952,1778849443000,-500.0,0.00010958,2]
[422339954,1778849443000,-502.56376681,0.00010958,2]
[422339950,1778849443000,-2197.22,0.00010958,2]
[422339948,1778849443000,-500.0,0.00010958,2]
[422339949,1778849443000,-500.0,0.00010958,2]
[422339939,1778849443000,-500.0,0.00010958,2]
[422339955,1778849443000,-698.49,0.00010958,2]
[422339956,1778849443000,-4401.43,0.00010958,2]
[422339958,1778849443000,-501.6234302,0.00010958,2]
[422339957,1778849443000,-54094.31,0.00010958,2]
[422339959,1778849443000,-511.46996623,0.00010958,2]
[422339960,1778849443000,-558.69,0.00010958,2]
[422339961,1778849443000,-501.11921324,0.00010958,2]
[422339962,1778849443000,-1923.45,0.00010958,2]
[422339963,1778849443000,-602.30001841,0.00010958,2]
[422339951,1778849443000,-548.85,0.00010958,2]
[422339934,1778849443000,-670.13,0.00010958,2]
[422339927,1778849443000,-433.86236581,0.00010958,2]
[422339931,1778849443000,-500.0,0.00010958,2]
[422339965,1778849443000,-500.0,0.00010958,2]
[422339886,1778849443000,-714.0,0.00010958,2]
[422339888,1778849443000,-877.0,0.00010958,2]
[422339889,1778849443000,-500.0,0.00010958,2]
[422339901,1778849443000,-1207.59,0.00010958,2]
[422339903,1778849443000,-500.0,0.00010958,2]
[422339893,1778849443000,-3822.25,0.00010958,2]
[422339892,1778849443000,-551.56,0.00010958,2]
[422339895,1778849443000,-500.0,0.00010958,2]
[422339897,1778849443000,-10114.29,0.00010958,2]
[422339899,1778849443000,-500.0,0.00010958,2]
[422339906,1778849443000,-500.0,0.00010958,2]
[422339908,1778849443000,-500.0,0.00010958,2]
[422339933,1778849443000,-500.0,0.00010958,2]
[422339905,1778849443000,-3071.49,0.00010958,2]
[422339912,1778849443000,-500.0,0.00010958,2]
[422339916,1778849443000,-2463.07,0.00010958,2]
[422339918,1778849443000,-6751.14,0.00010958,2]
[422339922,1778849443000,-500.0,0.00010958,2]
[422339921,1778849443000,-500.0,0.00010958,2]
[422339925,1778849443000,-727.67,0.00010958,2]
[422339920,1778849443000,-500.0,0.00010958,2]
[422339924,1778849443000,-500.0,0.00010958,2]
[422339923,1778849443000,-676.11,0.00010958,2]
[422339926,1778849443000,-1158.1145,0.00010958,2]
[422339928,1778849443000,-500.0,0.00010958,2]
[422339929,1778849443000,-2957.82,0.00010958,2]
[422339930,1778849443000,-500.0,0.00010958,2]
[422339914,1778849443000,-2901.36,0.00010958,2]
[422339910,1778849443000,-7619.26,0.00010958,2]
[422339967,1778849443000,-1820.81,0.00010958,2]
[422339964,1778849443000,-500.0,0.00010958,2]
[422340001,1778849443000,-761.49,0.00010958,2]
[422340004,1778849443000,-567.08015199,0.00010958,2]
[422340003,1778849443000,-1846.39,0.00010958,2]
[422340005,1778849443000,-7858.27,0.00010958,2]
[422340006,1778849443000,-504.2998564,0.00010958,2]
[422340007,1778849443000,-500.0,0.00010958,2]
[422340009,1778849443000,-500.0,0.00010958,2]
[422340008,1778849443000,-504.18295203,0.00010958,2]
[422340010,1778849443000,-500.31635632,0.00010958,2]
[422340011,1778849443000,-2746.67,0.00010958,2]
[422340012,1778849443000,-1564.0,0.00010959,2]
[422340014,1778849443000,-2354.90981847,0.00010959,2]
[422340015,1778849443000,-557.5788265,0.00010959,2]
[422339998,1778849443000,-151.0,0.00010958,2]
[422340017,1778849443000,-459.68,0.00010995,2]
[422340019,1778849443000,-390.2,0.00010997,2]
[422340020,1778849443000,-151.0,0.00011,2]
[422340018,1778849443000,-446.86,0.00010995,2]
[422340022,1778849443000,-151.0,0.00011,2]
[422340023,1778849443000,-151.0,0.00011,2]
[422340021,1778849443000,-151.0,0.00011,2]
[422340024,1778849443000,-151.0,0.00011,2]
[422340025,1778849443000,-5525.35063002,0.00011007,2]
[422340026,1778849443000,-840.25226322,0.00011007,2]
[422340027,1778849443000,-151.0,0.000111,2]
[422340028,1778849443000,-151.0,0.000111,2]
[422340029,1778849443000,-151.0,0.000111,2]
[422339968,1778849443000,-500.0,0.00010958,2]
[422340016,1778849443000,-427.93,0.0001098,2]
[422340000,1778849443000,-500.0,0.00010958,2]
[422340013,1778849443000,-15000.0,0.00010959,2]
[422339996,1778849443000,-151.0,0.00010958,2]
[422340002,1778849443000,-1445.86,0.00010958,2]
[422339970,1778849443000,-10491.47,0.00010958,2]
[422339969,1778849443000,-1233.93,0.00010958,2]
[422339973,1778849443000,-503.86227765,0.00010958,2]
[422339974,1778849443000,-540.22497542,0.00010958,2]
[422339971,1778849443000,-504.11953867,0.00010958,2]
[422339972,1778849443000,-500.0,0.00010958,2]
[422339975,1778849443000,-503.26026702,0.00010958,2]
[422339976,1778849443000,-500.0,0.00010958,2]
[422339980,1778849443000,-181.16705243,0.00010958,2]
[422339978,1778849443000,-500.0,0.00010958,2]
[422339979,1778849443000,-503.77751376,0.00010958,2]
[422339977,1778849443000,-501.31495075,0.00010958,2]
[422339982,1778849443000,-500.0,0.00010958,2]
[422339966,1778849443000,-503.450048,0.00010958,2]
[422339995,1778849443000,-2611.83,0.00010958,2]
[422339981,1778849443000,-500.0,0.00010958,2]
[422339994,1778849443000,-151.0,0.00010958,2]
[422339993,1778849443000,-2858.57,0.00010958,2]
[422339992,1778849443000,-695.37,0.00010958,2]
[422339988,1778849443000,-570.81313305,0.00010958,2]
[422339990,1778849443000,-1485.13,0.00010958,2]
[422339991,1778849443000,-503.45740031,0.00010958,2]
[422339986,1778849443000,-503.6515744,0.00010958,2]
[422339984,1778849443000,-500.0,0.00010958,2]
[422339987,1778849443000,-918.99,0.00010958,2]
[422339983,1778849443000,-500.0,0.00010958,2]
[422339985,1778849443000,-501.73647808,0.00010958,2]
[422339989,1778849443000,-502.45433278,0.00010958,2]
[422340070,1778849444000,-736.9,0.00011232,2]
[422340076,1778849444000,-500.0,0.00011232,2]
[422340073,1778849444000,-586.6,0.00011232,2]
[422340072,1778849444000,-1643.59,0.00011232,2]
[422340069,1778849444000,-500.0,0.00011232,2]
[422340071,1778849444000,-935.29,0.00011232,2]
[422340061,1778849444000,-500.0,0.00011232,2]
[422340068,1778849444000,-573.82,0.00011232,2]
[422340067,1778849444000,-500.0,0.00011232,2]
[422340065,1778849444000,-587.64,0.00011232,2]
[422340064,1778849444000,-500.0,0.00011232,2]
[422340075,1778849444000,-500.0,0.00011232,2]
[422340063,1778849444000,-500.0,0.00011232,2]
[422340066,1778849444000,-802.67,0.00011232,2]
[422340078,1778849444000,-1731.51,0.00011232,2]
[422340084,1778849444000,-634.74,0.00011232,2]
[422340079,1778849444000,-1818.53,0.00011232,2]
[422340077,1778849444000,-500.0,0.00011232,2]
[422340081,1778849444000,-643.33,0.00011232,2]
[422340080,1778849444000,-500.0,0.00011232,2]
[422340082,1778849444000,-181.0652,0.00011232,2]
[422340083,1778849444000,-500.0,0.00011232,2]
[422340085,1778849444000,-500.0,0.00011232,2]
[422340086,1778849444000,-500.0,0.00011232,2]
[422340088,1778849444000,-577.68,0.00011232,2]
[422340087,1778849444000,-500.0,0.00011232,2]
[422340089,1778849444000,-500.0,0.00011232,2]
[422340092,1778849444000,-500.0,0.00011232,2]
[422340091,1778849444000,-2358.97,0.00011232,2]
[422340074,1778849444000,-651.91,0.00011232,2]
[422340062,1778849444000,-569.51591826,0.00011232,2]
[422340030,1778849444000,-151.0,0.000111,2]
[422340059,1778849444000,-578.57,0.00011232,2]
[422340090,1778849444000,-500.0,0.00011232,2]
[422340031,1778849444000,-151.0,0.000111,2]
[422340032,1778849444000,-151.0,0.000111,2]
[422340033,1778849444000,-151.0,0.000111,2]
[422340034,1778849444000,-151.0,0.000112,2]
[422340035,1778849444000,-151.0,0.000112,2]
[422340037,1778849444000,-151.0,0.000112,2]
[422340036,1778849444000,-151.0,0.000112,2]
[422340038,1778849444000,-151.0,0.000112,2]
[422340039,1778849444000,-151.0,0.000112,2]
[422340040,1778849444000,-151.0,0.000112,2]
[422340042,1778849444000,-2155.0698,0.00011232,2]
[422340041,1778849444000,-151.0,0.000112,2]
[422340044,1778849444000,-500.0,0.00011232,2]
[422340043,1778849444000,-1180.1608,0.00011232,2]
[422340045,1778849444000,-504.38695904,0.00011232,2]
[422340046,1778849444000,-717.2,0.00011232,2]
[422340047,1778849444000,-1840.86,0.00011232,2]
[422340048,1778849444000,-1091.15,0.00011232,2]
[422340049,1778849444000,-500.0,0.00011232,2]
[422340051,1778849444000,-656.59,0.00011232,2]
[422340050,1778849444000,-500.0,0.00011232,2]
[422340052,1778849444000,-500.0,0.00011232,2]
[422340053,1778849444000,-500.0,0.00011232,2]
[422340055,1778849444000,-500.0,0.00011232,2]
[422340054,1778849444000,-500.0,0.00011232,2]
[422340056,1778849444000,-552.66,0.00011232,2]
[422340058,1778849444000,-647.95,0.00011232,2]
[422340057,1778849444000,-500.0,0.00011232,2]
[422340060,1778849444000,-710.18,0.00011232,2]
[422340094,1778849444000,-500.0,0.00011232,2]
[422340159,1778849444000,-1333.59,0.00011232,2]
[422340093,1778849444000,-554.81,0.00011232,2]
[422340131,1778849444000,-988.55,0.00011232,2]
[422340132,1778849444000,-788.37,0.00011232,2]
[422340133,1778849444000,-1882.48,0.00011232,2]
[422340129,1778849444000,-866.17,0.00011232,2]
[422340135,1778849444000,-1166.65,0.00011232,2]
[422340134,1778849444000,-3811.21,0.00011232,2]
[422340138,1778849444000,-523.27,0.00011232,2]
[422340136,1778849444000,-500.0,0.00011232,2]
[422340137,1778849444000,-550.29,0.00011232,2]
[422340140,1778849444000,-1355.94,0.00011232,2]
[422340139,1778849444000,-500.0,0.00011232,2]
[422340141,1778849444000,-500.0,0.00011232,2]
[422340144,1778849444000,-778.68,0.00011232,2]
[422340143,1778849444000,-678.14,0.00011232,2]
[422340142,1778849444000,-500.0,0.00011232,2]
[422340146,1778849444000,-2280.09,0.00011232,2]
[422340147,1778849444000,-744.67,0.00011232,2]
[422340148,1778849444000,-531.49,0.00011232,2]
[422340149,1778849444000,-500.0,0.00011232,2]
[422340151,1778849444000,-581.61,0.00011232,2]
[422340150,1778849444000,-788.18,0.00011232,2]
[422340152,1778849444000,-1588.73,0.00011232,2]
[422340153,1778849444000,-500.0,0.00011232,2]
[422340154,1778849444000,-1132.75,0.00011232,2]
[422340155,1778849444000,-3871.71,0.00011232,2]
[422340156,1778849444000,-500.0,0.00011232,2]
[422340157,1778849444000,-500.0,0.00011232,2]
[422340158,1778849444000,-679.39,0.00011232,2]
[422340095,1778849444000,-500.0,0.00011232,2]
[422340126,1778849444000,-500.0,0.00011232,2]
[422340130,1778849444000,-500.0,0.00011232,2]
[422340145,1778849444000,-620.45,0.00011232,2]
[422340127,1778849444000,-500.0,0.00011232,2]
[422340096,1778849444000,-1340.55,0.00011232,2]
[422340128,1778849444000,-500.0,0.00011232,2]
[422340098,1778849444000,-500.0,0.00011232,2]
[422340097,1778849444000,-500.0,0.00011232,2]
[422340099,1778849444000,-500.0,0.00011232,2]
[422340101,1778849444000,-500.0,0.00011232,2]
[422340102,1778849444000,-500.0,0.00011232,2]
[422340105,1778849444000,-3622.72,0.00011232,2]
[422340103,1778849444000,-696.13,0.00011232,2]
[422340100,1778849444000,-500.0,0.00011232,2]
[422340107,1778849444000,-500.0,0.00011232,2]
[422340106,1778849444000,-846.63,0.00011232,2]
[422340109,1778849444000,-577.18,0.00011232,2]
[422340108,1778849444000,-500.0,0.00011232,2]
[422340110,1778849444000,-1261.7,0.00011232,2]
[422340104,1778849444000,-500.0,0.00011232,2]
[422340111,1778849444000,-782.88,0.00011232,2]
[422340123,1778849444000,-934.56,0.00011232,2]
[422340112,1778849444000,-500.0,0.00011232,2]
[422340124,1778849444000,-526.12,0.00011232,2]
[422340122,1778849444000,-918.14,0.00011232,2]
[422340120,1778849444000,-500.0,0.00011232,2]
[422340121,1778849444000,-500.0,0.00011232,2]
[422340118,1778849444000,-500.0,0.00011232,2]
[422340125,1778849444000,-873.47,0.00011232,2]
[422340119,1778849444000,-742.9,0.00011232,2]
[422340116,1778849444000,-760.39,0.00011232,2]
[422340115,1778849444000,-500.0,0.00011232,2]
[422340113,1778849444000,-500.0,0.00011232,2]
[422340114,1778849444000,-1395.46,0.00011232,2]
[422340117,1778849444000,-1963.6,0.00011232,2]
[422340206,1778849445000,-500.0,0.00011232,2]
[422340204,1778849445000,-268.21670608,0.00011232,2]
[422340203,1778849445000,-3343.14,0.00011232,2]
[422340202,1778849445000,-1052.4,0.00011232,2]
[422340200,1778849445000,-500.0,0.00011232,2]
[422340201,1778849445000,-1254.81,0.00011232,2]
[422340198,1778849445000,-1714.37,0.00011232,2]
[422340197,1778849445000,-500.0,0.00011232,2]
[422340195,1778849445000,-500.0,0.00011232,2]
[422340196,1778849445000,-500.0,0.00011232,2]
[422340194,1778849445000,-500.0,0.00011232,2]
[422340205,1778849445000,-805.68,0.00011232,2]
[422340199,1778849445000,-500.0,0.00011232,2]
[422340208,1778849445000,-846.03,0.00011232,2]
[422340223,1778849445000,-500.0,0.00011232,2]
[422340209,1778849445000,-2056.39,0.00011232,2]
[422340210,1778849445000,-208.19250725,0.00011232,2]
[422340212,1778849445000,-598.31,0.00011232,2]
[422340211,1778849445000,-1581.42,0.00011232,2]
[422340213,1778849445000,-500.0,0.00011232,2]
[422340215,1778849445000,-560.07,0.00011232,2]
[422340214,1778849445000,-500.0,0.00011232,2]
[422340216,1778849445000,-500.0,0.00011232,2]
[422340218,1778849445000,-959.93,0.00011232,2]
[422340219,1778849445000,-3994.25,0.00011232,2]
[422340217,1778849445000,-9854.12,0.00011232,2]
[422340220,1778849445000,-500.0,0.00011232,2]
[422340222,1778849445000,-1879.8,0.00011232,2]
[422340192,1778849445000,-500.0,0.00011232,2]
[422340207,1778849445000,-2082.57,0.00011232,2]
[422340193,1778849445000,-500.0,0.00011232,2]
[422340161,1778849445000,-500.0,0.00011232,2]
[422340191,1778849445000,-787.75,0.00011232,2]
[422340221,1778849445000,-500.0,0.00011232,2]
[422340164,1778849445000,-1297.2304,0.00011232,2]
[422340163,1778849445000,-500.0,0.00011232,2]
[422340160,1778849445000,-500.0,0.00011232,2]
[422340162,1778849445000,-500.0,0.00011232,2]
[422340166,1778849445000,-1036.58,0.00011232,2]
[422340165,1778849445000,-510.25818655,0.00011232,2]
[422340169,1778849445000,-4165.16,0.00011232,2]
[422340167,1778849445000,-500.0,0.00011232,2]
[422340168,1778849445000,-500.0,0.00011232,2]
[422340172,1778849445000,-500.0,0.00011232,2]
[422340171,1778849445000,-607.33009509,0.00011232,2]
[422340173,1778849445000,-632.38,0.00011232,2]
[422340170,1778849445000,-500.0,0.00011232,2]
[422340190,1778849445000,-7753.18,0.00011232,2]
[422340174,1778849445000,-560.2,0.00011232,2]
[422340178,1778849445000,-500.0,0.00011232,2]
[422340177,1778849445000,-500.0,0.00011232,2]
[422340176,1778849445000,-3474.92,0.00011232,2]
[422340180,1778849445000,-4410.62,0.00011232,2]
[422340179,1778849445000,-500.0,0.00011232,2]
[422340183,1778849445000,-1293.15,0.00011232,2]
[422340181,1778849445000,-1355.43,0.00011232,2]
[422340185,1778849445000,-443.33799383,0.00011232,2]
[422340182,1778849445000,-4063.13,0.00011232,2]
[422340184,1778849445000,-514.92,0.00011232,2]
[422340186,1778849445000,-500.0,0.00011232,2]
[422340188,1778849445000,-562.24,0.00011232,2]
[422340187,1778849445000,-500.0,0.00011232,2]
[422340189,1778849445000,-515.35255644,0.00011232,2]
[422340175,1778849445000,-500.0,0.00011232,2]
[422340224,1778849445000,-3291.99,0.00011232,2]
[422340229,1778849445000,-3364.72,0.00011232,2]
[422340227,1778849445000,-798.59,0.00011232,2]
[422340262,1778849445000,-4459.59,0.00011232,2]
[422340264,1778849445000,-500.0,0.00011232,2]
[422340263,1778849445000,-1261.59,0.00011232,2]
[422340266,1778849445000,-500.0,0.00011232,2]
[422340268,1778849445000,-2197.22,0.00011232,2]
[422340267,1778849445000,-500.0,0.00011232,2]
[422340270,1778849445000,-500.0,0.00011232,2]
[422340269,1778849445000,-548.85,0.00011232,2]
[422340271,1778849445000,-698.49,0.00011232,2]
[422340272,1778849445000,-4401.43,0.00011232,2]
[422340273,1778849445000,-54094.31,0.00011232,2]
[422340274,1778849445000,-558.69,0.00011232,2]
[422340276,1778849445000,-1820.81,0.00011232,2]
[422340275,1778849445000,-1923.45,0.00011232,2]
[422340260,1778849445000,-500.0,0.00011232,2]
[422340279,1778849445000,-10491.47,0.00011232,2]
[422340278,1778849445000,-1233.93,0.00011232,2]
[422340280,1778849445000,-500.0,0.00011232,2]
[422340282,1778849445000,-500.0,0.00011232,2]
[422340283,1778849445000,-500.0,0.00011232,2]
[422340284,1778849445000,-500.0,0.00011232,2]
[422340281,1778849445000,-500.0,0.00011232,2]
[422340285,1778849445000,-918.99,0.00011232,2]
[422340287,1778849445000,-695.37,0.00011232,2]
[422340286,1778849445000,-1485.13,0.00011232,2]
[422340288,1778849445000,-2858.57,0.00011232,2]
[422340226,1778849445000,-601.76846671,0.00011232,2]
[422340289,1778849445000,-2611.83,0.00011232,2]
[422340292,1778849445000,-1445.86,0.00011232,2]
[422340291,1778849445000,-761.49,0.00011232,2]
[422340277,1778849445000,-500.0,0.00011232,2]
[422340261,1778849445000,-500.0,0.00011232,2]
[422340290,1778849445000,-500.0,0.00011232,2]
[422340259,1778849445000,-699.99,0.00011232,2]
[422340258,1778849445000,-500.0,0.00011232,2]
[422340228,1778849445000,-2771.62,0.00011232,2]
[422340231,1778849445000,-877.0,0.00011232,2]
[422340232,1778849445000,-500.0,0.00011232,2]
[422340230,1778849445000,-714.0,0.00011232,2]
[422340233,1778849445000,-551.56,0.00011232,2]
[422340237,1778849445000,-1207.59,0.00011232,2]
[422340238,1778849445000,-500.0,0.00011232,2]
[422340235,1778849445000,-10114.29,0.00011232,2]
[422340234,1778849445000,-3822.25,0.00011232,2]
[422340236,1778849445000,-500.0,0.00011232,2]
[422340239,1778849445000,-3071.49,0.00011232,2]
[422340240,1778849445000,-500.0,0.00011232,2]
[422340241,1778849445000,-7619.26,0.00011232,2]
[422340243,1778849445000,-2901.36,0.00011232,2]
[422340225,1778849445000,-619.71,0.00011232,2]
[422340245,1778849445000,-6751.14,0.00011232,2]
[422340242,1778849445000,-500.0,0.00011232,2]
[422340257,1778849445000,-500.0,0.00011232,2]
[422340253,1778849445000,-500.0,0.00011232,2]
[422340254,1778849445000,-670.13,0.00011232,2]
[422340251,1778849445000,-1158.1145,0.00011232,2]
[422340252,1778849445000,-2957.82,0.00011232,2]
[422340255,1778849445000,-8085.57,0.00011232,2]
[422340250,1778849445000,-371.88,0.00011232,2]
[422340244,1778849445000,-2463.07,0.00011232,2]
[422340249,1778849445000,-727.67,0.00011232,2]
[422340256,1778849445000,-3177.11,0.00011232,2]
[422340247,1778849445000,-676.11,0.00011232,2]
[422340248,1778849445000,-500.0,0.00011232,2]
[422340246,1778849445000,-500.0,0.00011232,2]
[422340332,1778849446000,-2245.663,0.000114,2]
[422340341,1778849446000,-1247.48,0.000114,2]
[422340333,1778849446000,-2245.66,0.000114,2]
[422340334,1778849446000,-326.593,0.000114,2]
[422340355,1778849446000,-500.0,0.00011506,2]
[422340336,1778849446000,-1510.57,0.000114,2]
[422340338,1778849446000,-1752.2166,0.000114,2]
[422340337,1778849446000,-2388.1797,0.000114,2]
[422340339,1778849446000,-1913.3479,0.000114,2]
[422340340,1778849446000,-1247.483,0.000114,2]
[422340343,1778849446000,-1427.5341,0.000114,2]
[422340335,1778849446000,-1510.575,0.000114,2]
[422340348,1778849446000,-500.0,0.00011505,2]
[422340342,1778849446000,-1512.5283,0.000114,2]
[422340346,1778849446000,-151.0,0.000114,2]
[422340345,1778849446000,-151.0,0.000114,2]
[422340347,1778849446000,-7676.10574714,0.00011406,2]
[422340349,1778849446000,-2155.0698,0.00011506,2]
[422340351,1778849446000,-500.0,0.00011506,2]
[422340350,1778849446000,-1180.1608,0.00011506,2]
[422340352,1778849446000,-717.2,0.00011506,2]
[422340353,1778849446000,-1840.86,0.00011506,2]
[422340356,1778849446000,-510.55854635,0.00011506,2]
[422340354,1778849446000,-1091.15,0.00011506,2]
[422340328,1778849446000,-389.012847,0.00011389,2]
[422340344,1778849446000,-449.4045,0.000114,2]
[422340331,1778849446000,-2245.663,0.000114,2]
[422340308,1778849446000,-151.0,0.000113,2]
[422340329,1778849446000,-618.025695,0.00011389,2]
[422340293,1778849446000,-1846.39,0.00011232,2]
[422340295,1778849446000,-500.0,0.00011232,2]
[422340296,1778849446000,-500.0,0.00011232,2]
[422340297,1778849446000,-2746.67,0.00011232,2]
[422340298,1778849446000,-3329.89,0.00011233,2]
[422340294,1778849446000,-7858.27,0.00011232,2]
[422340300,1778849446000,-160.0,0.00011276,2]
[422340301,1778849446000,-4698.564884,0.00011276,2]
[422340303,1778849446000,-160.0,0.00011276,2]
[422340306,1778849446000,-151.0,0.000113,2]
[422340302,1778849446000,-9237.129769,0.00011276,2]
[422340305,1778849446000,-6105.10469,0.00011276,2]
[422340330,1778849446000,-2036.03,0.000114,2]
[422340304,1778849446000,-3132.552345,0.00011276,2]
[422340313,1778849446000,-233.91,0.000113,2]
[422340311,1778849446000,-314.24,0.000113,2]
[422340315,1778849446000,-160.0,0.00011332,2]
[422340316,1778849446000,-4233.409321,0.00011332,2]
[422340318,1778849446000,-8306.818642,0.00011332,2]
[422340320,1778849446000,-160.0,0.00011332,2]
[422340322,1778849446000,-2741.954056,0.00011332,2]
[422340323,1778849446000,-5323.908112,0.00011332,2]
[422340327,1778849446000,-160.0,0.00011389,2]
[422340324,1778849446000,-160.0,0.00011332,2]
[422340325,1778849446000,-7109.031475,0.00011332,2]
[422340326,1778849446000,-14058.062951,0.00011332,2]
[422340309,1778849446000,-270.83,0.000113,2]
[422340358,1778849446000,-500.0,0.00011506,2]
[422340383,1778849446000,-1731.51,0.00011506,2]
[422340359,1778849446000,-500.0,0.00011506,2]
[422340392,1778849446000,-577.68,0.00011506,2]
[422340391,1778849446000,-500.0,0.00011506,2]
[422340393,1778849446000,-500.0,0.00011506,2]
[422340395,1778849446000,-2358.97,0.00011506,2]
[422340394,1778849446000,-500.0,0.00011506,2]
[422340396,1778849446000,-500.0,0.00011506,2]
[422340397,1778849446000,-554.81,0.00011506,2]
[422340398,1778849446000,-500.0,0.00011506,2]
[422340400,1778849446000,-1340.55,0.00011506,2]
[422340399,1778849446000,-509.51689275,0.00011506,2]
[422340402,1778849446000,-500.0,0.00011506,2]
[422340404,1778849446000,-500.0,0.00011506,2]
[422340389,1778849446000,-500.0,0.00011506,2]
[422340406,1778849446000,-500.0,0.00011506,2]
[422340405,1778849446000,-500.0,0.00011506,2]
[422340407,1778849446000,-696.13,0.00011506,2]
[422340408,1778849446000,-500.0,0.00011506,2]
[422340410,1778849446000,-846.63,0.00011506,2]
[422340409,1778849446000,-3622.72,0.00011506,2]
[422340412,1778849446000,-500.0,0.00011506,2]
[422340411,1778849446000,-500.0,0.00011506,2]
[422340416,1778849446000,-500.0,0.00011506,2]
[422340413,1778849446000,-577.18,0.00011506,2]
[422340415,1778849446000,-782.88,0.00011506,2]
[422340414,1778849446000,-1261.7,0.00011506,2]
[422340360,1778849446000,-500.0,0.00011506,2]
[422340403,1778849446000,-500.0,0.00011506,2]
[422340390,1778849446000,-500.0,0.00011506,2]
[422340401,1778849446000,-500.0,0.00011506,2]
[422340387,1778849446000,-500.0,0.00011506,2]